[Event "Titled Tuesday Blitz November 29 Late 2022"]
[White "Sadhwani, Raunak"]
[Black "Putnam, Liam"]
[WhiteFideId "35093487"]
[BlackFideId "30938279"]
[WhiteElo "2983"]
[BlackElo "2745"]
[Result "1-0"]
[Round "03"]
[TimeControl "180+1"]
[Date "2022.11.30"]
[WhiteClock "0:01:43"]
[BlackClock "0:00:03"]

1. e4 {[%clk 0:03:00]}  c5 {[%clk 0:02:58]} 2. Nf3 {[%clk 0:03:01]}  d6 {[%clk 0:02:56]} 3. Bb5+ {[%clk 0:03:01]}  Nd7 {[%clk 0:02:50]} 4. a4 {[%clk 0:03:01]}  a6 {[%clk 0:02:49]} 5. Be2 {[%clk 0:03:00]}  Ngf6 {[%clk 0:02:50]} 6. Nc3 {[%clk 0:03:01]}  e6 {[%clk 0:02:45]} 7. O-O {[%clk 0:02:59]}  Be7 {[%clk 0:02:45]} 8. d4 {[%clk 0:02:56]}  cxd4 {[%clk 0:02:42]} 9. Qxd4 {[%clk 0:02:57]}  O-O {[%clk 0:02:40]} 10. Rd1 {[%clk 0:02:57]}  Qc7 {[%clk 0:02:38]} 11. Be3 {[%clk 0:02:56]}  b6 {[%clk 0:02:37]} 12. Nd2 {[%clk 0:02:56]}  Bb7 {[%clk 0:01:49]} 13. Nc4 {[%clk 0:02:56]}  d5 {[%clk 0:01:49]} 14. Nxb6 {[%clk 0:02:40]}  e5 {[%clk 0:01:23]} 15. Ncxd5 {[%clk 0:02:11]}  exd4 {[%clk 0:00:41]} 16. Nxc7 {[%clk 0:02:10]}  Nxb6 {[%clk 0:00:32]} 17. Bxd4 {[%clk 0:02:09]}  Nbd7 {[%clk 0:00:28]} 18. Nxa8 {[%clk 0:02:09]}  Rxa8 {[%clk 0:00:29]} 19. f3 {[%clk 0:02:09]}  Rc8 {[%clk 0:00:27]} 20. c3 {[%clk 0:02:09]}  Nc5 {[%clk 0:00:27]} 21. Be3 {[%clk 0:01:58]}  h6 {[%clk 0:00:19]} 22. b4 {[%clk 0:01:46]}  Nb3 {[%clk 0:00:19]} 23. Rab1 {[%clk 0:01:47]}  Rxc3 {[%clk 0:00:20]} 24. Rd3 {[%clk 0:01:48]}  Rc2 {[%clk 0:00:08]} 25. Bd1 {[%clk 0:01:46]}  Rc7 {[%clk 0:00:04]} 26. Bxb3 {[%clk 0:01:46]}  Nd7 {[%clk 0:00:03]} 27. Rc1 {[%clk 0:01:45]}  Rxc1+ {[%clk 0:00:02]} 28. Bxc1 {[%clk 0:01:46]}  Ne5 {[%clk 0:00:03]} 29. Rd4 {[%clk 0:01:42]}  Nc6 {[%clk 0:00:03]} 30. Rd7 {[%clk 0:01:42]}  Bc8 {[%clk 0:00:03]} 31. Rc7 {[%clk 0:01:43]} 1-0


[Site "https://www.chess.com"]

[Event "Titled Tuesday Blitz November 29 Late 2022"]
[White "Sadovsky, Artem"]
[Black "Gareyev, Timur"]
[WhiteFideId "4155840"]
[BlackFideId "14200937"]
[WhiteElo "2312"]
[BlackElo "2552"]
[Result "1-0"]
[Round "03"]
[TimeControl "180+1"]
[Date "2022.11.30"]
[WhiteClock "0:00:14"]
[BlackClock "0:00:14"]

1. Nf3 {[%clk 0:02:31]}  d6 {[%clk 0:02:53]} 2. e3 {[%clk 0:02:31]}  e5 {[%clk 0:02:50]} 3. d4 {[%clk 0:02:32]}  e4 {[%clk 0:02:50]} 4. Nfd2 {[%clk 0:02:32]}  Nf6 {[%clk 0:02:49]} 5. c4 {[%clk 0:02:33]}  Qe7 {[%clk 0:02:50]} 6. Nc3 {[%clk 0:02:33]}  g6 {[%clk 0:02:50]} 7. h3 {[%clk 0:02:34]}  h5 {[%clk 0:02:50]} 8. b3 {[%clk 0:02:32]}  Bg7 {[%clk 0:02:49]} 9. Bb2 {[%clk 0:02:32]}  Bf5 {[%clk 0:02:49]} 10. Be2 {[%clk 0:02:25]}  c6 {[%clk 0:02:49]} 11. Rc1 {[%clk 0:02:15]}  a5 {[%clk 0:02:50]} 12. Na4 {[%clk 0:02:12]}  Na6 {[%clk 0:02:51]} 13. a3 {[%clk 0:02:08]}  h4 {[%clk 0:02:28]} 14. c5 {[%clk 0:02:06]}  d5 {[%clk 0:02:27]} 15. Nb6 {[%clk 0:02:05]}  Ra7 {[%clk 0:02:27]} 16. Bc3 {[%clk 0:02:00]}  Nc7 {[%clk 0:02:27]} 17. Nf1 {[%clk 0:01:49]}  O-O {[%clk 0:02:22]} 18. g4 {[%clk 0:01:47]}  hxg3 {[%clk 0:02:21]} 19. Nxg3 {[%clk 0:01:48]}  Qe6 {[%clk 0:02:13]} 20. h4 {[%clk 0:01:40]}  Bg4 {[%clk 0:02:13]} 21. h5 {[%clk 0:01:31]}  Nb5 {[%clk 0:02:09]} 22. Bb2 {[%clk 0:01:31]}  g5 {[%clk 0:01:43]} 23. h6 {[%clk 0:01:29]}  Bh8 {[%clk 0:01:42]} 24. Bxg4 {[%clk 0:01:16]}  Nxg4 {[%clk 0:01:43]} 25. Rh5 {[%clk 0:01:16]}  f6 {[%clk 0:01:36]} 26. a4 {[%clk 0:01:03]}  Nc7 {[%clk 0:01:28]} 27. Qe2 {[%clk 0:00:45]}  Kh7 {[%clk 0:01:26]} 28. Kd2 {[%clk 0:00:43]}  Rg8 {[%clk 0:01:22]} 29. Rg1 {[%clk 0:00:42]}  Na6 {[%clk 0:01:05]} 30. Nxe4 {[%clk 0:00:38]}  dxe4 {[%clk 0:01:05]} 31. Qxg4 {[%clk 0:00:38]}  f5 {[%clk 0:01:04]} 32. Qd1 {[%clk 0:00:33]}  Bf6 {[%clk 0:00:58]} 33. Kc1 {[%clk 0:00:28]}  Nb4 {[%clk 0:00:54]} 34. Nc4 {[%clk 0:00:24]}  Nd3+ {[%clk 0:00:54]} 35. Kb1 {[%clk 0:00:24]}  b5 {[%clk 0:00:42]} 36. cxb6 {[%clk 0:00:23]}  Rb7 {[%clk 0:00:37]} 37. f4 {[%clk 0:00:24]}  g4 {[%clk 0:00:35]} 38. Qd2 {[%clk 0:00:18]}  Rgb8 {[%clk 0:00:32]} 39. Qxa5 {[%clk 0:00:17]}  Kh8 {[%clk 0:00:27]} 40. Qxf5 {[%clk 0:00:17]}  Qe7 {[%clk 0:00:17]} 41. Rxg4 {[%clk 0:00:16]}  Nxb2 {[%clk 0:00:16]} 42. Kxb2 {[%clk 0:00:17]}  Rxb6 {[%clk 0:00:16]} 43. Nxb6 {[%clk 0:00:16]}  Rxb6 {[%clk 0:00:17]} 44. Qc8+ {[%clk 0:00:16]}  Kh7 {[%clk 0:00:14]} 45. Qg8# {[%clk 0:00:14]} 1-0


[Site "https://www.chess.com"]

[Event "Titled Tuesday Blitz November 29 Late 2022"]
[White "Salem, A.R. Saleh"]
[Black "Jaracz, Pawel"]
[WhiteFideId "9301348"]
[BlackFideId "1102222"]
[WhiteElo "2998"]
[BlackElo "2753"]
[Result "1-0"]
[Round "03"]
[TimeControl "180+1"]
[Date "2022.11.30"]
[WhiteClock "0:00:04"]
[BlackClock "0:00:07"]

1. d4 {[%clk 0:03:00]}  Nf6 {[%clk 0:02:59]} 2. c4 {[%clk 0:03:01]}  e6 {[%clk 0:02:59]} 3. Nc3 {[%clk 0:03:01]}  Bb4 {[%clk 0:02:59]} 4. a3 {[%clk 0:03:02]}  Bxc3+ {[%clk 0:02:59]} 5. bxc3 {[%clk 0:03:02]}  c5 {[%clk 0:02:55]} 6. f3 {[%clk 0:03:03]}  d6 {[%clk 0:02:55]} 7. e4 {[%clk 0:03:03]}  Nc6 {[%clk 0:02:55]} 8. Be3 {[%clk 0:03:03]}  b6 {[%clk 0:02:55]} 9. Bd3 {[%clk 0:03:03]}  Na5 {[%clk 0:02:54]} 10. Ne2 {[%clk 0:03:04]}  Ba6 {[%clk 0:02:54]} 11. Ng3 {[%clk 0:03:02]}  Qd7 {[%clk 0:02:49]} 12. Qe2 {[%clk 0:03:00]}  Qa4 {[%clk 0:02:46]} 13. e5 {[%clk 0:02:49]}  dxe5 {[%clk 0:02:46]} 14. dxe5 {[%clk 0:02:49]}  Nd7 {[%clk 0:02:47]} 15. Bf2 {[%clk 0:02:21]}  Bxc4 {[%clk 0:02:41]} 16. Qe4 {[%clk 0:02:20]}  Rd8 {[%clk 0:02:21]} 17. O-O {[%clk 0:02:16]}  Qb5 {[%clk 0:02:01]} 18. Rfd1 {[%clk 0:01:42]}  Bxd3 {[%clk 0:01:49]} 19. Rxd3 {[%clk 0:01:43]}  Qc4 {[%clk 0:01:47]} 20. Rad1 {[%clk 0:01:16]}  Qxe4 {[%clk 0:01:39]} 21. Nxe4 {[%clk 0:01:17]}  Nc6 {[%clk 0:01:37]} 22. f4 {[%clk 0:00:52]}  Ndb8 {[%clk 0:00:57]} 23. Nd6+ {[%clk 0:00:39]}  Ke7 {[%clk 0:00:53]} 24. Bh4+ {[%clk 0:00:36]}  f6 {[%clk 0:00:52]} 25. exf6+ {[%clk 0:00:36]}  gxf6 {[%clk 0:00:53]} 26. Ne4 {[%clk 0:00:36]}  Rxd3 {[%clk 0:00:42]} 27. Bxf6+ {[%clk 0:00:34]}  Kf7 {[%clk 0:00:39]} 28. Rxd3 {[%clk 0:00:35]}  Rf8 {[%clk 0:00:34]} 29. g4 {[%clk 0:00:33]}  Kg6 {[%clk 0:00:33]} 30. g5 {[%clk 0:00:30]}  Rf7 {[%clk 0:00:27]} 31. Kg2 {[%clk 0:00:10]}  Rd7 {[%clk 0:00:26]} 32. Nd6 {[%clk 0:00:09]}  Na5 {[%clk 0:00:22]} 33. h4 {[%clk 0:00:10]}  h5 {[%clk 0:00:19]} 34. f5+ {[%clk 0:00:03]}  exf5 {[%clk 0:00:18]} 35. Kf3 {[%clk 0:00:02]}  Nc4 {[%clk 0:00:14]} 36. Nxc4 {[%clk 0:00:01]}  Rxd3+ {[%clk 0:00:15]} 37. Kf4 {[%clk 0:00:02]}  Rh3 {[%clk 0:00:13]} 38. Ne5+ {[%clk 0:00:02]}  Kh7 {[%clk 0:00:13]} 39. g6+ {[%clk 0:00:03]}  Kg8 {[%clk 0:00:12]} 40. Kg5 {[%clk 0:00:02]}  Rh1 {[%clk 0:00:08]} 41. Nf7 {[%clk 0:00:02]}  Nd7 {[%clk 0:00:08]} 42. Nh6+ {[%clk 0:00:02]}  Kf8 {[%clk 0:00:07]} 43. g7+ {[%clk 0:00:02]}  Ke8 {[%clk 0:00:07]} 44. g8=Q+ {[%clk 0:00:03]}  Nf8 {[%clk 0:00:07]} 45. Qf7# {[%clk 0:00:04]} 1-0


[Site "https://www.chess.com"]

[Event "Titled Tuesday Blitz November 29 Late 2022"]
[White "Santos Flores, Alberto"]
[Black "Djordjevic, Vuk"]
[WhiteFideId "3601234"]
[BlackFideId "902098"]
[WhiteElo "2235"]
[BlackElo "2456"]
[Result "0-1"]
[Round "03"]
[TimeControl "180+1"]
[Date "2022.11.30"]
[WhiteClock "0:00:02"]
[BlackClock "0:00:05"]

1. d4 {[%clk 0:03:00]}  Nf6 {[%clk 0:02:59]} 2. Nf3 {[%clk 0:02:59]}  e6 {[%clk 0:03:00]} 3. c4 {[%clk 0:02:58]}  b6 {[%clk 0:03:00]} 4. g3 {[%clk 0:02:57]}  Ba6 {[%clk 0:03:01]} 5. Nbd2 {[%clk 0:02:56]}  Bb4 {[%clk 0:03:00]} 6. b3 {[%clk 0:02:50]}  O-O {[%clk 0:03:00]} 7. Bg2 {[%clk 0:02:36]}  Bb7 {[%clk 0:03:00]} 8. O-O {[%clk 0:02:33]}  c5 {[%clk 0:02:48]} 9. Bb2 {[%clk 0:02:14]}  cxd4 {[%clk 0:02:43]} 10. Bxd4 {[%clk 0:02:12]}  Nc6 {[%clk 0:02:42]} 11. Bb2 {[%clk 0:02:12]}  d5 {[%clk 0:02:42]} 12. Ne5 {[%clk 0:02:04]}  Nxe5 {[%clk 0:02:20]} 13. Bxe5 {[%clk 0:02:05]}  Qe7 {[%clk 0:02:20]} 14. Qc2 {[%clk 0:01:57]}  Rac8 {[%clk 0:02:16]} 15. Qb2 {[%clk 0:01:29]}  Bxd2 {[%clk 0:01:59]} 16. Qxd2 {[%clk 0:01:28]}  dxc4 {[%clk 0:01:59]} 17. Bxf6 {[%clk 0:01:28]}  gxf6 {[%clk 0:01:55]} 18. Bxb7 {[%clk 0:01:25]}  Qxb7 {[%clk 0:01:56]} 19. bxc4 {[%clk 0:01:24]}  Rxc4 {[%clk 0:01:53]} 20. Rfd1 {[%clk 0:01:16]}  Qe4 {[%clk 0:01:50]} 21. Qh6 {[%clk 0:01:07]}  Qg6 {[%clk 0:01:30]} 22. Qd2 {[%clk 0:01:03]}  Rc2 {[%clk 0:01:28]} 23. Qe3 {[%clk 0:01:01]}  Qg4 {[%clk 0:01:28]} 24. f3 {[%clk 0:00:59]}  Qc4 {[%clk 0:01:17]} 25. Rd2 {[%clk 0:00:56]}  Rxd2 {[%clk 0:01:14]} 26. Qxd2 {[%clk 0:00:57]}  Rc8 {[%clk 0:01:12]} 27. a4 {[%clk 0:00:54]}  Kg7 {[%clk 0:00:58]} 28. a5 {[%clk 0:00:53]}  b5 {[%clk 0:00:59]} 29. a6 {[%clk 0:00:52]}  b4 {[%clk 0:00:58]} 30. Qe3 {[%clk 0:00:51]}  Qc5 {[%clk 0:00:39]} 31. Kf2 {[%clk 0:00:42]}  b3 {[%clk 0:00:36]} 32. Rb1 {[%clk 0:00:34]}  Qxe3+ {[%clk 0:00:31]} 33. Kxe3 {[%clk 0:00:35]}  Rb8 {[%clk 0:00:31]} 34. Kd4 {[%clk 0:00:34]}  Rb6 {[%clk 0:00:30]} 35. Kc3 {[%clk 0:00:30]}  Rxa6 {[%clk 0:00:29]} 36. Rxb3 {[%clk 0:00:30]}  Ra2 {[%clk 0:00:30]} 37. Kd3 {[%clk 0:00:28]}  a5 {[%clk 0:00:29]} 38. Rb7 {[%clk 0:00:28]}  f5 {[%clk 0:00:29]} 39. Ra7 {[%clk 0:00:27]}  Kf6 {[%clk 0:00:29]} 40. Ke3 {[%clk 0:00:27]}  Ra1 {[%clk 0:00:21]} 41. f4 {[%clk 0:00:24]}  a4 {[%clk 0:00:13]} 42. Kf2 {[%clk 0:00:23]}  h5 {[%clk 0:00:13]} 43. Kg2 {[%clk 0:00:22]}  h4 {[%clk 0:00:13]} 44. gxh4 {[%clk 0:00:20]}  Kg6 {[%clk 0:00:14]} 45. Kf2 {[%clk 0:00:19]}  a3 {[%clk 0:00:13]} 46. h3 {[%clk 0:00:15]}  a2 {[%clk 0:00:13]} 47. Ra8 {[%clk 0:00:15]}  f6 {[%clk 0:00:12]} 48. Kg2 {[%clk 0:00:13]}  Kh5 {[%clk 0:00:12]} 49. Rh8+ {[%clk 0:00:12]}  Kg6 {[%clk 0:00:13]} 50. Ra8 {[%clk 0:00:09]}  e5 {[%clk 0:00:13]} 51. e3 {[%clk 0:00:07]}  Kf7 {[%clk 0:00:11]} 52. Kh2 {[%clk 0:00:07]}  Kg6 {[%clk 0:00:06]} 53. Kg2 {[%clk 0:00:05]}  Kh7 {[%clk 0:00:05]} 54. Ra7+ {[%clk 0:00:05]}  Kh6 {[%clk 0:00:06]} 55. Ra8 {[%clk 0:00:06]}  Kg6 {[%clk 0:00:06]} 56. Kh2 {[%clk 0:00:04]}  Re1 {[%clk 0:00:05]} 57. Rxa2 {[%clk 0:00:04]}  Rxe3 {[%clk 0:00:06]} 58. fxe5 {[%clk 0:00:03]}  fxe5 {[%clk 0:00:06]} 59. Kg2 {[%clk 0:00:03]}  Kh5 {[%clk 0:00:05]} 60. Ra5 {[%clk 0:00:02]}  Kxh4 {[%clk 0:00:05]} 61. Ra8 {[%clk 0:00:02]}  f4 {[%clk 0:00:05]} 0-1


[Site "https://www.chess.com"]

[Event "Titled Tuesday Blitz November 29 Late 2022"]
[White "Sarana, Alexey"]
[Black "Papasimakopoulos, Alexandros"]
[WhiteFideId "24133795"]
[BlackFideId "4244125"]
[WhiteElo "3004"]
[BlackElo "2764"]
[Result "0-1"]
[Round "03"]
[TimeControl "180+1"]
[Date "2022.11.30"]
[WhiteClock "0:00:15"]
[BlackClock "0:00:30"]

1. c4 {[%clk 0:02:59]}  e6 {[%clk 0:02:55]} 2. Nc3 {[%clk 0:02:59]}  d5 {[%clk 0:02:54]} 3. d4 {[%clk 0:02:59]}  Be7 {[%clk 0:02:54]} 4. Nf3 {[%clk 0:03:00]}  Nf6 {[%clk 0:02:53]} 5. g3 {[%clk 0:03:00]}  b6 {[%clk 0:02:52]} 6. Bg2 {[%clk 0:03:01]}  Bb7 {[%clk 0:02:52]} 7. Ne5 {[%clk 0:03:01]}  O-O {[%clk 0:02:51]} 8. O-O {[%clk 0:03:00]}  Nbd7 {[%clk 0:02:49]} 9. Qa4 {[%clk 0:02:57]}  c5 {[%clk 0:02:34]} 10. cxd5 {[%clk 0:02:49]}  cxd4 {[%clk 0:02:28]} 11. Nc6 {[%clk 0:02:41]}  Bxc6 {[%clk 0:02:24]} 12. dxc6 {[%clk 0:02:42]}  Nc5 {[%clk 0:02:24]} 13. Qc4 {[%clk 0:02:33]}  dxc3 {[%clk 0:02:24]} 14. b4 {[%clk 0:02:33]}  b5 {[%clk 0:02:10]} 15. Qxb5 {[%clk 0:02:32]}  Nce4 {[%clk 0:02:03]} 16. Bf4 {[%clk 0:02:31]}  Qd5 {[%clk 0:01:59]} 17. Qb7 {[%clk 0:02:29]}  e5 {[%clk 0:01:48]} 18. Bg5 {[%clk 0:02:02]}  h6 {[%clk 0:01:11]} 19. Bxf6 {[%clk 0:01:46]}  Bxf6 {[%clk 0:01:12]} 20. Rfd1 {[%clk 0:01:46]}  Qc4 {[%clk 0:01:12]} 21. c7 {[%clk 0:01:46]}  Nd2 {[%clk 0:01:06]} 22. Bd5 {[%clk 0:01:18]}  Qxe2 {[%clk 0:00:59]} 23. Rac1 {[%clk 0:01:18]}  e4 {[%clk 0:00:59]} 24. Qxa8 {[%clk 0:00:21]}  Rxa8 {[%clk 0:01:00]} 25. Bxa8 {[%clk 0:00:21]}  Qc4 {[%clk 0:00:50]} 26. Rxd2 {[%clk 0:00:21]}  Qxc7 {[%clk 0:00:40]} 27. Re2 {[%clk 0:00:21]}  Qb8 {[%clk 0:00:36]} 28. Bxe4 {[%clk 0:00:20]}  Qxb4 {[%clk 0:00:37]} 29. Rd1 {[%clk 0:00:19]}  g6 {[%clk 0:00:36]} 30. Kf1 {[%clk 0:00:19]}  h5 {[%clk 0:00:35]} 31. Bc2 {[%clk 0:00:19]}  h4 {[%clk 0:00:33]} 32. Bb3 {[%clk 0:00:16]}  Qb7 {[%clk 0:00:32]} 33. Rd5 {[%clk 0:00:15]}  h3 {[%clk 0:00:30]} 0-1


[Site "https://www.chess.com"]

[Event "Titled Tuesday Blitz November 29 Late 2022"]
[White "Shankland, Sam"]
[Black "Aguilar, Juan"]
[WhiteFideId "2004887"]
[BlackFideId "3800091"]
[WhiteElo "2612"]
[BlackElo "2522"]
[Result "1/2-1/2"]
[Round "03"]
[TimeControl "180+1"]
[Date "2022.11.30"]
[WhiteClock "0:00:42"]
[BlackClock "0:00:09"]

1. d4 {[%clk 0:03:00]}  Nf6 {[%clk 0:02:59]} 2. c4 {[%clk 0:02:59]}  g6 {[%clk 0:03:00]} 3. Nc3 {[%clk 0:02:59]}  d5 {[%clk 0:03:00]} 4. Nf3 {[%clk 0:02:59]}  Bg7 {[%clk 0:02:59]} 5. Qb3 {[%clk 0:02:59]}  dxc4 {[%clk 0:02:58]} 6. Qxc4 {[%clk 0:03:00]}  O-O {[%clk 0:02:57]} 7. e4 {[%clk 0:03:00]}  a6 {[%clk 0:02:58]} 8. Be2 {[%clk 0:02:58]}  b5 {[%clk 0:02:56]} 9. Qb3 {[%clk 0:02:59]}  c5 {[%clk 0:02:54]} 10. dxc5 {[%clk 0:02:58]}  Be6 {[%clk 0:02:46]} 11. Qc2 {[%clk 0:02:56]}  Nc6 {[%clk 0:02:44]} 12. O-O {[%clk 0:02:50]}  Qc7 {[%clk 0:02:39]} 13. h3 {[%clk 0:02:44]}  Rfd8 {[%clk 0:02:35]} 14. Be3 {[%clk 0:02:43]}  Nb4 {[%clk 0:02:28]} 15. Qb1 {[%clk 0:02:41]}  Bc4 {[%clk 0:02:27]} 16. Bxc4 {[%clk 0:02:34]}  bxc4 {[%clk 0:02:27]} 17. Nd2 {[%clk 0:02:31]}  Nd7 {[%clk 0:02:17]} 18. a3 {[%clk 0:02:28]}  Bxc3 {[%clk 0:02:06]} 19. bxc3 {[%clk 0:02:27]}  Nd3 {[%clk 0:02:03]} 20. Nxc4 {[%clk 0:02:26]}  N7xc5 {[%clk 0:01:59]} 21. Qb6 {[%clk 0:02:15]}  Qxb6 {[%clk 0:01:56]} 22. Nxb6 {[%clk 0:02:16]}  Rab8 {[%clk 0:01:56]} 23. Nd5 {[%clk 0:02:16]}  Rd7 {[%clk 0:01:49]} 24. Rfd1 {[%clk 0:02:16]}  Kg7 {[%clk 0:01:46]} 25. f3 {[%clk 0:02:12]}  Rb2 {[%clk 0:01:23]} 26. Nb4 {[%clk 0:02:03]}  a5 {[%clk 0:01:21]} 27. Nxd3 {[%clk 0:02:00]}  Nxd3 {[%clk 0:01:19]} 28. Bd4+ {[%clk 0:02:00]}  Rxd4 {[%clk 0:01:16]} 29. cxd4 {[%clk 0:02:00]}  Nf4 {[%clk 0:01:16]} 30. Kh1 {[%clk 0:01:52]}  Rxg2 {[%clk 0:01:14]} 31. Rg1 {[%clk 0:01:51]}  Re2 {[%clk 0:01:12]} 32. h4 {[%clk 0:01:50]}  Rf2 {[%clk 0:01:03]} 33. Raf1 {[%clk 0:01:48]}  Rc2 {[%clk 0:01:02]} 34. Rg4 {[%clk 0:01:47]}  Ne6 {[%clk 0:01:00]} 35. d5 {[%clk 0:01:46]}  Nc5 {[%clk 0:00:59]} 36. Rg2 {[%clk 0:01:41]}  Rc3 {[%clk 0:00:59]} 37. h5 {[%clk 0:01:41]}  Nd3 {[%clk 0:00:57]} 38. hxg6 {[%clk 0:01:40]}  hxg6 {[%clk 0:00:56]} 39. Kh2 {[%clk 0:01:37]}  Rxa3 {[%clk 0:00:54]} 40. Rd2 {[%clk 0:01:36]}  Nf4 {[%clk 0:00:54]} 41. Kg3 {[%clk 0:01:36]}  Nd3 {[%clk 0:00:52]} 42. Re2 {[%clk 0:01:32]}  Ne5 {[%clk 0:00:50]} 43. Kg2 {[%clk 0:01:29]}  g5 {[%clk 0:00:50]} 44. f4 {[%clk 0:01:25]}  gxf4 {[%clk 0:00:44]} 45. Rxf4 {[%clk 0:01:25]}  a4 {[%clk 0:00:43]} 46. Rc2 {[%clk 0:01:24]}  Rb3 {[%clk 0:00:30]} 47. Rc7 {[%clk 0:01:22]}  Ng6 {[%clk 0:00:30]} 48. Rf2 {[%clk 0:01:18]}  a3 {[%clk 0:00:29]} 49. d6 {[%clk 0:01:16]}  exd6 {[%clk 0:00:25]} 50. Rcxf7+ {[%clk 0:01:16]}  Kh6 {[%clk 0:00:25]} 51. R7f6 {[%clk 0:01:16]}  Rb2 {[%clk 0:00:24]} 52. Rxd6 {[%clk 0:01:13]}  Kg5 {[%clk 0:00:24]} 53. Kg3 {[%clk 0:00:53]}  Rxf2 {[%clk 0:00:20]} 54. Kxf2 {[%clk 0:00:53]}  a2 {[%clk 0:00:16]} 55. Ra6 {[%clk 0:00:52]}  Kf4 {[%clk 0:00:15]} 56. Rxa2 {[%clk 0:00:51]}  Kxe4 {[%clk 0:00:15]} 57. Kg3 {[%clk 0:00:52]}  Kf5 {[%clk 0:00:15]} 58. Ra5+ {[%clk 0:00:52]}  Kf6 {[%clk 0:00:14]} 59. Kg4 {[%clk 0:00:52]}  Ne5+ {[%clk 0:00:13]} 60. Kf4 {[%clk 0:00:52]}  Ng6+ {[%clk 0:00:13]} 61. Ke4 {[%clk 0:00:52]}  Ne7 {[%clk 0:00:12]} 62. Ra6+ {[%clk 0:00:51]}  Kf7 {[%clk 0:00:12]} 63. Rb6 {[%clk 0:00:48]}  Ng6 {[%clk 0:00:11]} 64. Kf5 {[%clk 0:00:48]}  Ne7+ {[%clk 0:00:11]} 65. Kg5 {[%clk 0:00:48]}  Nd5 {[%clk 0:00:10]} 66. Rd6 {[%clk 0:00:48]}  Ne7 {[%clk 0:00:10]} 67. Kf4 {[%clk 0:00:42]}  Nc8 {[%clk 0:00:10]} 68. Ra6 {[%clk 0:00:42]}  Ne7 {[%clk 0:00:10]} 69. Ke5 {[%clk 0:00:42]}  Ng6+ {[%clk 0:00:09]} 70. Kd5 {[%clk 0:00:42]}  Ne7+ {[%clk 0:00:09]} 71. Ke4 {[%clk 0:00:42]}  Ng6 {[%clk 0:00:10]} 72. Rxg6 {[%clk 0:00:42]}  Kxg6 {[%clk 0:00:09]} 1/2-1/2


[Site "https://www.chess.com"]

[Event "Titled Tuesday Blitz November 29 Late 2022"]
[White "Shapiro, Daniel"]
[Black "Vargas, Mauricio"]
[WhiteFideId "2001780"]
[BlackFideId "4404572"]
[WhiteElo "2318"]
[BlackElo "2025"]
[Result "1-0"]
[Round "03"]
[TimeControl "180+1"]
[Date "2022.11.30"]
[WhiteClock "0:00:14"]
[BlackClock "0:00:01"]

1. d4 {[%clk 0:03:00]}  d5 {[%clk 0:01:44]} 2. c4 {[%clk 0:03:00]}  c6 {[%clk 0:01:45]} 3. Nf3 {[%clk 0:02:59]}  e6 {[%clk 0:01:45]} 4. Qc2 {[%clk 0:02:54]}  Nf6 {[%clk 0:01:44]} 5. g3 {[%clk 0:02:53]}  Nbd7 {[%clk 0:01:42]} 6. Bg2 {[%clk 0:02:53]}  Ne4 {[%clk 0:01:42]} 7. O-O {[%clk 0:02:49]}  f5 {[%clk 0:01:43]} 8. Nc3 {[%clk 0:02:36]}  Bd6 {[%clk 0:01:42]} 9. Bf4 {[%clk 0:02:32]}  Bxf4 {[%clk 0:01:40]} 10. gxf4 {[%clk 0:02:31]}  O-O {[%clk 0:01:41]} 11. e3 {[%clk 0:02:27]}  Rf6 {[%clk 0:01:39]} 12. Ne5 {[%clk 0:02:23]}  Rh6 {[%clk 0:01:27]} 13. f3 {[%clk 0:01:56]}  Qh4 {[%clk 0:01:18]} 14. fxe4 {[%clk 0:01:33]}  Qxh2+ {[%clk 0:01:12]} 15. Kf2 {[%clk 0:01:34]}  fxe4 {[%clk 0:01:08]} 16. Rh1 {[%clk 0:01:29]}  Nf6 {[%clk 0:01:04]} 17. Rxh2 {[%clk 0:01:26]}  Rxh2 {[%clk 0:01:05]} 18. Kg1 {[%clk 0:01:23]}  Rh6 {[%clk 0:01:04]} 19. c5 {[%clk 0:01:16]}  b5 {[%clk 0:00:55]} 20. Nxc6 {[%clk 0:01:10]}  Bd7 {[%clk 0:00:52]} 21. Ne5 {[%clk 0:01:03]}  Be8 {[%clk 0:00:51]} 22. c6 {[%clk 0:00:55]}  a6 {[%clk 0:00:46]} 23. Rf1 {[%clk 0:00:40]}  Nh5 {[%clk 0:00:46]} 24. Kf2 {[%clk 0:00:35]}  Nf6 {[%clk 0:00:42]} 25. Rh1 {[%clk 0:00:34]}  Bh5 {[%clk 0:00:37]} 26. Bh3 {[%clk 0:00:30]}  Ne8 {[%clk 0:00:29]} 27. Qb3 {[%clk 0:00:25]}  Nd6 {[%clk 0:00:26]} 28. Nxd5 {[%clk 0:00:25]}  Nc4 {[%clk 0:00:24]} 29. Nxc4 {[%clk 0:00:24]}  bxc4 {[%clk 0:00:23]} 30. Qxc4 {[%clk 0:00:23]}  exd5 {[%clk 0:00:24]} 31. Qxd5+ {[%clk 0:00:24]}  Bf7 {[%clk 0:00:23]} 32. Qxe4 {[%clk 0:00:22]}  Re8 {[%clk 0:00:22]} 33. c7 {[%clk 0:00:20]}  Rxe4 {[%clk 0:00:17]} 34. c8=Q+ {[%clk 0:00:20]}  Re8 {[%clk 0:00:17]} 35. Qc3 {[%clk 0:00:19]}  Rf6 {[%clk 0:00:11]} 36. Bg2 {[%clk 0:00:18]}  h6 {[%clk 0:00:10]} 37. d5 {[%clk 0:00:19]}  Bg6 {[%clk 0:00:08]} 38. Rd1 {[%clk 0:00:18]}  Rf7 {[%clk 0:00:07]} 39. d6 {[%clk 0:00:18]}  Rf6 {[%clk 0:00:07]} 40. Bd5+ {[%clk 0:00:17]}  Kh7 {[%clk 0:00:05]} 41. Bb3 {[%clk 0:00:16]}  Rd8 {[%clk 0:00:03]} 42. Bc2 {[%clk 0:00:16]}  Rfxd6 {[%clk 0:00:03]} 43. Bxg6+ {[%clk 0:00:16]}  Kxg6 {[%clk 0:00:03]} 44. Qc2+ {[%clk 0:00:15]}  Kf7 {[%clk 0:00:02]} 45. Qf5+ {[%clk 0:00:15]}  Kg8 {[%clk 0:00:01]} 46. Rxd6 {[%clk 0:00:14]}  Rxd6 {[%clk 0:00:01]} 47. Qc2 {[%clk 0:00:14]} 1-0


[Site "https://www.chess.com"]